bitfinex/quotes_SOLUSD_20251103
["timestamp","ask_amount","ask_price","bid_price","bid_amount"]
[1762137256902,6.63026504,184.38,184.34,6.43026504]
[1762137257084,0.2,184.38,184.34,0.71]
[1762137257285,6.63026504,184.38,184.34,0.71]
[1762137257807,0.2,184.38,184.35,6.43026504]
[1762137258004,0.2,184.38,184.35,0.71]
[1762137258308,0.2,184.38,184.36,5.4241701]
[1762137258878,0.2,184.38,184.37,0.71]
[1762137259080,0.2,184.38,184.34,7.14026504]
[1762137259299,0.2,184.38,184.34,0.71]
[1762137259300,6.63026504,184.38,184.34,0.71]
[1762137259808,0.2,184.38,184.34,7.14026504]
[1762137259994,0.2,184.38,184.36,6.43026504]
[1762137260192,0.2,184.38,184.37,5.4238759]
[1762137261381,0.2,184.38,184.37,0.71]
[1762137262194,0.2,184.38,184.37,6.1338759]
[1762137264612,6.63026504,184.38,184.33,0.71]
[1762137264788,0.2,184.38,184.35,6.43026504]
[1762137265299,0.2,184.38,184.36,0.71]
[1762137266289,0.2,184.38,184.32,0.7]
[1762137266489,6.63026504,184.38,184.34,18.98665508]
[1762137266711,0.2,184.38,184.35,6.43026504]
[1762137266904,0.2,184.38,184.35,7.13026504]
[1762137267109,0.2,184.38,184.36,0.7]
[1762137267892,0.2,184.38,184.37,5.4238759]
[1762137268486,0.2,184.38,184.34,13.56189649]
[1762137268487,6.63026504,184.38,184.31,0.7]
[1762137268689,6.63026504,184.38,184.3,6.12592822]
[1762137268690,6.43026504,184.34,184.3,6.12592822]
[1762137269000,0.62,184.38,184.29,6.43026504]
[1762137269001,6.43026504,184.33,184.29,6.12622209]
[1762137269188,6.43026504,184.34,184.3,0.7]
[1762137269388,6.43026504,184.35,184.3,7.13026504]
[1762137269585,21.212,184.38,184.29,6.43026504]
[1762137269803,6.43026504,184.34,184.31,5.42564158]
[1762137270184,0.2,184.38,184.32,7.13026504]
[1762137270389,6.43026504,184.37,184.32,7.13026504]
[1762137270583,6.43026504,184.33,184.28,12.55653124]
[1762137270798,6.43026504,184.33,184.28,26.12284337]
[1762137271001,6.43026504,184.33,184.29,0.7]
[1762137271191,6.43026504,184.35,184.3,6.43026504]
[1762137271397,6.43026504,184.36,184.31,6.43026504]
[1762137271916,6.43026504,184.37,184.33,5.42505289]
[1762137272213,6.43026504,184.34,184.29,0.7]
[1762137272414,6.43026504,184.32,184.29,0.7]
[1762137272714,0.42,184.37,184.26,13.567557]
[1762137272914,0.42,184.37,184.28,7.13026504]
[1762137273100,6.43026504,184.33,184.28,7.13026504]
[1762137273302,0.42,184.37,184.28,0.7]
[1762137273500,6.43026504,184.32,184.28,0.7]
[1762137273700,0.42,184.36,184.28,7.13026504]
[1762137274013,6.43026504,184.35,184.31,5.42564158]
[1762137274392,6.43026504,184.35,184.32,0.7]
[1762137275402,6.43026504,184.35,184.32,6.12527183]
[1762137275997,6.43026504,184.33,184.31,5.42562993]
[1762137276498,6.43026504,184.33,184.31,6.09562993]
[1762137277700,20.592,184.37,184.31,6.09562993]
[1762137277898,6.43026504,184.34,184.31,6.09562993]
[1762137279193,6.43026504,184.34,184.32,0.67]
[1762137279613,6.43026504,184.34,184.32,6.09523941]
[1762137279792,6.43026504,184.33,184.31,5.42558248]
[1762137279990,6.43026504,184.32,184.29,6.09596236]
[1762137280193,6.43026504,184.31,184.29,5.42596236]
[1762137280413,6.43026504,184.3,184.27,0.67]
[1762137280617,20.592,184.34,184.27,6.09672358]
[1762137280819,6.43026504,184.31,184.27,6.09672358]
[1762137281320,20.592,184.34,184.27,6.09672358]
[1762137281321,20.592,184.34,184.28,0.67]
[1762137281520,6.43026504,184.3,184.28,0.67]
[1762137281823,6.43026504,184.3,184.28,6.09643249]
[1762137282594,0.42,184.33,184.26,5.42684553]
[1762137282817,6.43026504,184.3,184.26,6.09684553]
[1762137283010,20.592,184.35,184.27,0.67]
[1762137283319,27.02226504,184.31,184.27,0.67]
[1762137283722,27.02226504,184.31,184.28,5.42652485]
[1762137283895,6.43026504,184.32,184.28,18.99283698]
[1762137284095,6.43026504,184.32,184.29,0.67]
[1762137284442,87.70794041,184.34,184.29,0.67]
[1762137284607,0.2,184.38,184.29,0.67]
[1762137284608,6.43026504,184.35,184.29,0.67]
[1762137284802,6.43026504,184.3,184.27,5.42652589]
[1762137285127,6.43026504,184.29,184.27,5.42652589]
[1762137285601,6.43026504,184.29,184.27,6.09652589]
[1762137285802,20.592,184.35,184.27,5.42652589]
[1762137285803,6.43026504,184.28,184.27,5.42652589]
[1762137286005,6.43026504,184.28,184.24,0.67]
[1762137286308,4.19754281,184.26,184.24,0.67]
[1762137286510,50.0,184.36,184.22,13.57005244]
[1762137286511,4.19754281,184.3,184.23,5.42799761]
[1762137286914,4.19754281,184.26,184.23,5.42799761]
[1762137287111,4.19754281,184.27,184.24,0.67]
[1762137287832,4.19754281,184.27,184.25,5.42740841]
[1762137289226,4.19754281,184.26,184.24,5.42768746]
[1762137289417,0.42,184.29,184.24,5.42768746]
[1762137289724,4.19754281,184.25,184.21,6.09858693]
[1762137289925,4.19754281,184.24,184.19,0.67]
[1762137290137,20.592,184.28,184.2,0.67]
[1762137290138,4.19754281,184.23,184.2,0.67]
[1762137290807,4.19754281,184.22,184.2,0.67]
[1762137291008,21.012,184.25,184.18,0.67]
[1762137291221,4.19754281,184.22,184.18,0.67]
[1762137291408,4.19754281,184.19,184.16,0.67]
[1762137291802,20.592,184.25,184.16,0.67]
[1762137291803,21.012,184.25,184.16,4.86754281]
[1762137292003,4.19754281,184.21,184.17,5.42976597]
[1762137292239,4.19754281,184.2,184.17,5.42976597]
[1762137292636,4.19754281,184.2,184.17,6.09976597]
[1762137292821,0.42,184.24,184.17,6.09976597]
[1762137293027,4.19754281,184.19,184.17,6.09976597]
[1762137293350,20.592,184.26,184.18,4.86754281]
[1762137293552,4.19754281,184.19,184.14,0.67]
[1762137293849,50.42,184.27,184.15,0.67]
[1762137293850,4.19754281,184.18,184.15,0.67]
[1762137294050,4.19754281,184.19,184.16,5.43006081]
[1762137294434,4.19754281,184.18,184.16,0.67]
[1762137294630,4.19754281,184.17,184.13,0.67]
[1762137294945,4.19754281,184.15,184.1,17.7764397]
[1762137295149,4.19754281,184.15,184.12,0.67]
[1762137295536,4.19754281,184.16,184.12,0.67]
[1762137296228,4.19754281,184.17,184.13,5.43094552]
[1762137296421,4.19754281,184.17,184.12,4.86754281]
[1762137296632,4.19754281,184.16,184.13,0.67]
[1762137296937,4.19754281,184.15,184.11,5.43150905]
[1762137297134,4.19754281,184.16,184.11,4.19754281]
[1762137297352,4.19754281,184.14,184.09,4.19754281]
[1762137297653,4.19754281,184.14,184.1,0.67]
[1762137297831,4.19754281,184.13,184.1,0.67]
[1762137298020,4.19754281,184.14,184.1,0.67]
[1762137298225,4.19754281,184.14,184.11,5.43153549]
[1762137298547,20.592,184.17,184.11,5.43153549]
[1762137298760,20.592,184.16,184.12,0.67]
[1762137298922,24.78954281,184.16,184.12,0.67]
[1762137300147,20.592,184.16,184.12,0.67]
[1762137300372,4.19754281,184.13,184.05,0.67]
[1762137300532,4.19754281,184.06,184.02,0.67]
[1762137300727,4.19754281,184.05,184.0,5.43449673]
[1762137300935,4.19754281,184.1,183.98,0.67]
[1762137300936,4.19754281,184.02,183.98,0.67]
[1762137301134,20.592,184.07,184.0,4.19754281]
[1762137301344,4.19754281,184.04,183.99,4.19754281]
[1762137301540,4.19754281,184.03,183.98,4.86754281]
[1762137301742,4.19754281,184.02,183.98,0.67]
[1762137301946,4.19754281,184.03,183.99,0.67]
[1762137302162,21.012,184.07,184.0,5.4347826]
[1762137302368,4.19754281,184.03,183.99,0.67]
[1762137302582,4.19754281,184.03,183.98,5.43516569]
[1762137302583,20.592,184.07,184.0,0.67]
[1762137303059,4.19754281,184.07,184.02,4.19754281]
[1762137303267,20.592,184.11,183.97,0.54356688]
[1762137303268,4.19754281,184.03,183.97,0.67]
[1762137303431,4.19754281,183.98,183.94,5.43655539]
[1762137303835,21.012,184.02,183.95,0.67]
[1762137304150,4.19754281,183.99,183.94,23.22548669]
[1762137304457,4.19754281,183.98,183.94,5.43655539]
[1762137304666,4.19754281,183.95,183.93,9.84935966]
[1762137304872,4.19754281,183.94,183.93,9.84935966]
[1762137306062,20.592,183.97,183.93,15.9861959]
[1762137306262,4.19754281,183.95,183.93,15.2861959]
[1762137306556,59.78882769,184.04,183.93,15.2861959]
[1762137306557,0.42,184.03,183.94,0.7]
[1762137306743,0.42,184.03,183.93,9.84935966]
[1762137306744,4.19754281,183.95,183.93,9.84935966]
[1762137306947,4.19754281,183.94,183.93,9.84935966]
[1762137307147,0.42,183.99,183.93,15.28621063]
[1762137307349,4.19754281,183.95,183.93,9.84935966]
[1762137307730,0.42,183.99,183.93,9.84935966]
[1762137307731,0.42,183.99,183.93,15.98618489]
[1762137308051,20.592,184.01,183.94,4.89754281]
[1762137308241,4.19754281,184.0,183.95,19.02690948]
[1762137308654,4.19754281,184.0,183.96,0.7]
[1762137308957,20.592,184.03,183.96,0.7]
[1762137309259,4.19754281,184.0,183.96,0.7]
[1762137309559,4.19754281,184.01,183.96,0.7]
[1762137309747,4.19754281,184.01,183.96,4.89754281]
[1762137310062,0.42,184.04,183.96,0.7]
[1762137310063,4.19754281,184.0,183.96,0.7]
[1762137310256,4.19754281,183.99,183.95,19.02690948]
[1762137310468,4.19754281,184.0,183.95,23.92445229]
[1762137310648,4.19754281,184.0,183.95,19.72690948]
[1762137310849,21.012,184.04,183.96,0.7]
[1762137311045,20.592,184.04,183.96,0.7]
[1762137311235,20.592,184.04,183.97,4.19754281]
[1762137311567,4.19754281,184.02,183.97,4.19754281]
[1762137311789,4.19754281,184.04,183.98,4.89754281]
[1762137311992,0.42,184.06,184.0,4.19754281]
[1762137311993,4.19754281,184.06,184.0,4.19754281]
[1762137312272,4.19754281,184.04,183.99,4.89754281]
[1762137312439,4.19754281,184.03,183.99,0.7]
[1762137312645,4.19754281,184.03,183.99,6.1349135]
[1762137313069,20.592,184.08,184.0,0.7]
[1762137313246,4.19754281,184.05,184.0,4.89754281]
[1762137313448,4.19754281,184.06,184.01,4.19754281]
[1762137313669,24.75696648,184.07,184.01,0.7]
[1762137313870,4.16496648,184.08,184.02,0.7]
[1762137314168,0.42,184.11,184.02,4.86496648]
[1762137314375,0.42,184.11,184.03,5.43389664]
[1762137314555,4.16496648,184.09,184.04,4.16496648]
[1762137314766,9.78882769,184.16,184.05,0.7]
[1762137314767,10.20882769,184.16,184.05,0.7]
[1762137314947,0.42,184.16,184.08,4.16496648]
[1762137315154,4.16496648,184.13,184.08,4.16496648]
[1762137315469,4.16496648,184.13,184.09,0.7]
[1762137315972,4.16496648,184.12,184.09,0.7]
[1762137316373,9.78882769,184.2,184.09,0.7]
[1762137316374,0.42,184.18,184.1,5.43183052]
[1762137316574,4.16496648,184.13,184.1,5.43183052]
[1762137316944,4.16496648,184.14,184.11,0.7]
[1762137317350,4.16496648,184.14,184.03,0.7]
[1762137317351,4.16496648,184.12,184.03,0.7]
[1762137317582,20.592,184.11,184.03,14.28404065]
[1762137317769,4.16496648,184.08,184.03,18.44900713]
[1762137317975,4.16496648,184.08,184.04,0.7]
[1762137318156,20.592,184.11,184.04,0.7]
[1762137318353,20.592,184.15,184.07,4.16496648]
[1762137318577,0.42,184.21,184.1,4.16496648]
[1762137318888,0.42,184.21,184.06,0.54330109]
[1762137318889,4.16496648,184.19,184.13,4.16496648]
[1762137319049,4.16496648,184.18,184.06,11.03212878]
[1762137319245,4.16496648,184.14,184.07,0.7]
[1762137319485,20.592,184.2,184.1,4.16496648]
[1762137319671,4.16496648,184.18,184.07,10.48882769]
[1762137319874,4.16496648,184.18,184.12,4.16496648]
[1762137320176,4.16496648,184.18,184.08,0.7]
[1762137320177,4.16496648,184.18,184.13,4.16496648]
[1762137320484,4.16496648,184.17,184.14,5.43065059]
[1762137320651,4.16496648,184.16,184.14,5.43065059]
[1762137320850,4.16496648,184.16,184.12,0.7]
[1762137320851,4.16496648,184.15,184.12,0.7]
[1762137321047,4.16496648,184.14,184.1,5.43183052]
[1762137321278,0.42,184.19,184.11,0.7]
[1762137321550,4.16496648,184.15,184.11,0.7]
[1762137321959,4.16496648,184.16,184.11,0.7]
[1762137322156,4.16496648,184.16,184.11,4.86496648]
[1762137322366,4.16496648,184.12,184.07,14.28142512]
[1762137322570,4.16496648,184.11,184.08,19.01347239]
[1762137322773,4.16496648,184.11,184.08,19.71347239]
[1762137322995,4.16496648,184.11,184.08,19.01347239]
[1762137323172,4.16496648,184.09,184.07,5.43270602]
[1762137323376,4.16496648,184.08,184.07,5.43270602]
[1762137323789,0.42,184.13,184.07,5.43270602]
[1762137323976,4.16496648,184.09,184.07,5.43270602]
[1762137324376,4.16496648,184.08,184.05,19.01639802]
[1762137324584,70.592,184.16,184.06,0.7]
[1762137324892,9.78882769,184.17,184.11,4.16496648]
[1762137324893,4.16496648,184.17,184.11,4.16496648]
[1762137325105,4.16496648,184.2,184.08,20.592]
[1762137325308,4.16496648,184.22,184.16,4.16496648]
[1762137325510,50.0,184.28,184.09,0.71]
[1762137325511,4.16496648,184.17,184.09,0.71]
[1762137325722,4.16496648,184.17,184.08,20.592]
[1762137325723,9.78882769,184.24,184.15,4.16496648]
[1762137325868,0.42,184.27,184.17,4.16496648]
[1762137326202,0.42,184.27,184.19,4.16496648]
[1762137326506,4.16496648,184.27,184.21,4.16496648]
[1762137326704,0.42,184.31,184.23,4.16496648]
[1762137326705,4.16496648,184.29,184.23,4.16496648]
[1762137326876,4.16496648,184.31,184.25,4.16496648]
[1762137327077,4.16496648,184.31,184.24,4.87496648]
[1762137327490,4.16496648,184.26,184.22,0.71]
[1762137327799,20.592,184.31,184.24,4.16496648]
[1762137328004,4.16496648,184.28,184.22,4.87496648]
[1762137328300,21.012,184.32,184.22,4.87496648]
[1762137328602,4.16496648,184.27,184.23,0.71]
[1762137328803,9.98882769,184.35,184.18,13.57324259]
[1762137328804,0.42,184.29,184.19,4.16496648]
[1762137328969,4.16496648,184.27,184.23,0.71]
[1762137329169,4.16496648,184.27,184.21,4.16496648]
[1762137329397,4.16496648,184.27,184.21,4.87496648]
[1762137329914,4.16496648,184.28,184.22,4.87496648]
[1762137330119,4.16496648,184.27,184.22,0.71]
[1762137330483,4.16496648,184.27,184.23,5.42799761]
[1762137330687,0.42,184.26,184.19,5.42917639]
[1762137330916,4.16496648,184.24,184.19,5.42917639]
[1762137331106,0.42,184.26,184.19,0.71]
[1762137331317,20.592,184.28,184.2,0.71]
[1762137331513,4.16496648,184.26,184.2,4.87496648]
[1762137331811,4.16496648,184.26,184.21,4.16496648]
[1762137332000,4.16496648,184.25,184.21,0.71]
[1762137332318,4.16496648,184.24,184.21,0.71]
[1762137332520,67.53594041,184.29,184.2,5.42888165]
[1762137332521,4.16496648,184.23,184.2,5.42888165]
[1762137332726,4.16496648,184.21,184.18,5.42925008]
[1762137333213,4.16496648,184.2,184.18,6.13925008]
[1762137333414,4.16496648,184.21,184.18,5.42925008]
[1762137333634,67.11594041,184.24,184.09,0.54321255]
[1762137333635,4.16496648,184.19,184.13,5.43094552]
[1762137333926,0.42,184.23,184.13,5.43094552]
[1762137333927,4.16496648,184.2,184.14,4.87496648]
[1762137334086,4.16496648,184.19,184.14,4.87496648]
[1762137334291,67.11594041,184.22,184.15,0.71]
[1762137334508,67.11594041,184.22,184.15,6.14010021]
[1762137334697,4.16496648,184.18,184.13,5.43080315]
[1762137334913,4.16496648,184.15,184.12,0.71]
[1762137335229,4.16496648,184.13,184.07,0.71]
[1762137335395,4.16496648,184.12,184.07,4.87496648]
[1762137335594,20.592,184.18,184.11,4.16496648]
[1762137335808,20.592,184.18,184.06,13.58190985]
[1762137335809,4.16496648,184.15,184.1,4.16496648]
[1762137336115,4.16496648,184.14,184.09,4.16496648]
[1762137336490,4.16496648,184.14,184.11,5.43153549]
[1762137337204,4.16496648,184.12,184.08,5.43242068]
[1762137337403,0.42,184.16,184.08,6.13242068]
[1762137337611,0.42,184.16,184.08,23.87843887]
[1762137337915,4.16496648,184.12,184.08,19.71347239]
[1762137338503,20.592,184.17,184.11,4.16496648]
[1762137338818,4.16496648,184.19,184.14,4.16496648]
[1762137339205,4.16496648,184.19,184.15,0.7]
[1762137339593,67.11594041,184.2,184.15,0.7]
[1762137339795,4.16496648,184.18,184.13,4.16496648]
[1762137339997,4.16496648,184.17,184.13,0.7]
[1762137340213,4.16496648,184.15,184.09,4.86496648]
[1762137340401,4.16496648,184.15,184.1,4.16496648]
[1762137340611,0.42,184.19,184.11,19.01037422]
[1762137340919,0.42,184.19,184.11,19.71037422]
[1762137340920,4.16496648,184.15,184.11,19.71037422]
[1762137341306,0.42,184.17,184.11,19.71037422]
[1762137341506,4.16496648,184.14,184.11,19.71037422]
[1762137342304,4.16496648,184.14,184.11,5.43153549]
[1762137342504,4.16496648,184.13,184.11,5.43153549]
[1762137342729,4.16496648,184.12,184.11,5.43153549]
[1762137343421,4.16496648,184.12,184.09,5.43212559]
[1762137343622,4.16496648,184.12,184.06,5.43301097]
[1762137343623,4.16496648,184.1,184.06,5.43301097]
[1762137343926,4.16496648,184.09,184.06,19.7155384]
[1762137344424,4.16496648,184.1,184.06,19.7155384]
[1762137344831,0.42,184.14,184.08,4.16496648]
[1762137344832,4.16496648,184.14,184.08,4.16496648]
[1762137345029,4.16496648,184.15,184.1,4.16496648]
[1762137345527,9.78882769,184.2,184.06,19.0155384]
[1762137345528,0.42,184.21,184.12,4.16496648]
[1762137345730,4.16496648,184.18,184.13,4.16496648]
[1762137345903,67.11594041,184.24,184.14,4.86496648]
[1762137345904,67.53594041,184.24,184.14,4.86496648]
[1762137346104,4.16496648,184.19,184.14,4.86496648]
[1762137346403,4.16496648,184.17,184.11,0.7]
[1762137346598,20.592,184.21,184.11,4.86496648]
[1762137346899,20.592,184.21,184.12,4.16496648]
[1762137346900,4.16496648,184.17,184.12,4.16496648]
[1762137347104,4.16496648,184.18,184.12,0.7]
[1762137347305,4.16496648,184.18,184.13,0.7]
[1762137347501,4.16496648,184.18,184.13,4.86496648]
[1762137347715,20.592,184.21,184.14,4.86496648]
[1762137347902,4.16496648,184.2,184.14,4.86496648]
[1762137348099,4.16496648,184.19,184.14,4.86496648]
[1762137348306,0.42,184.23,184.16,5.43006081]
[1762137348506,6.27584412,184.18,184.16,5.43006081]
[1762137349012,6.27584412,184.17,184.14,5.43040913]
[1762137349415,0.42,184.21,184.15,0.7]
[1762137349416,6.27584412,184.18,184.15,0.7]
[1762137349812,6.27584412,184.19,184.15,0.7]
[1762137350026,6.27584412,184.21,184.16,6.27584412]
[1762137350327,67.53594041,184.24,184.17,5.42976597]
[1762137350534,6.27584412,184.21,184.17,5.42976597]
[1762137350709,6.27584412,184.2,184.17,5.42976597]
[1762137350908,6.27584412,184.18,184.15,5.4300704]
[1762137351229,0.42,184.2,184.15,5.4300704]
[1762137351427,0.42,184.23,184.15,5.4300704]
[1762137351633,6.27584412,184.18,184.15,5.4300704]
[1762137351937,0.42,184.23,184.15,19.70595962]
[1762137352110,6.27584412,184.19,184.15,19.70595962]
[1762137352507,6.27584412,184.21,184.16,6.97584412]
[1762137352736,6.27584412,184.21,184.16,0.7]
[1762137353034,6.27584412,184.2,184.17,0.7]
[1762137353535,6.27584412,184.2,184.15,25.28180374]
[1762137353827,6.27584412,184.19,184.16,0.7]
[1762137354039,6.27584412,184.18,184.16,0.7]
[1762137354415,0.42,184.2,184.12,13.57764637]
[1762137354727,6.27584412,184.16,184.11,11.70737961]
[1762137354932,6.27584412,184.16,184.12,0.7]
[1762137355254,6.27584412,184.17,184.12,6.97584412]
[1762137355615,6.27584412,184.17,184.13,0.7]
[1762137356653,6.27584412,184.17,184.14,5.43065059]
[1762137356935,0.42,184.24,184.16,6.27584412]
[1762137357135,67.11594041,184.25,184.17,0.7]
[1762137357324,6.27584412,184.18,184.14,19.70727706]
[1762137357822,6.27584412,184.18,184.15,0.7]
[1762137358020,6.27584412,184.2,184.15,0.7]
[1762137358331,6.27584412,184.2,184.15,6.97584412]
[1762137358727,6.27584412,184.2,184.17,5.42976597]
[1762137358918,87.70794041,184.25,184.14,19.85247059]
[1762137358919,6.27584412,184.19,184.14,19.85247059]
[1762137359238,6.27584412,184.19,184.15,0.7]
[1762137359433,67.11594041,184.24,184.15,25.98208902]
[1762137359731,6.27584412,184.2,184.15,25.98208902]
[1762137360231,6.27584412,184.21,184.16,6.97584412]
[1762137360431,6.27584412,184.22,184.17,6.27584412]
[1762137360610,6.27584412,184.22,184.19,5.42917639]
[1762137361045,67.11594041,184.24,184.15,5.43006674]
[1762137361046,6.27584412,184.2,184.15,5.43006674]
[1762137361227,6.27584412,184.16,184.1,0.7]
[1762137361430,73.81178453,184.21,184.1,0.7]
[1762137361431,6.27584412,184.13,184.1,0.7]
[1762137361615,10.20882769,184.2,184.1,0.7]
[1762137361616,6.27584412,184.14,184.1,0.7]
[1762137362135,6.27584412,184.13,184.08,0.7]
[1762137362445,6.27584412,184.12,184.09,0.7]
[1762137362819,6.27584412,184.12,184.1,5.43183052]
[1762137363217,6.27584412,184.14,184.11,0.7]
[1762137363628,6.27584412,184.14,184.1,19.01140683]
[1762137363945,6.27584412,184.13,184.1,19.01140683]
[1762137364329,67.11594041,184.16,184.05,0.7]
[1762137364330,6.27584412,184.11,184.05,0.7]
[1762137364529,6.27584412,184.07,184.02,0.7]
[1762137364718,20.592,184.13,184.02,0.7]
[1762137364719,6.27584412,184.06,184.03,5.43389664]
[1762137364918,6.27584412,184.04,183.99,6.97584412]
[1762137365140,21.012,184.09,183.99,6.97584412]
[1762137365325,6.27584412,184.04,184.0,0.7]
[1762137365940,6.27584412,184.05,184.0,6.97584412]
[1762137366116,6.27584412,184.05,183.96,46.20569689]
[1762137366117,6.27584412,184.04,183.96,46.20569689]
[1762137366319,0.42,184.06,183.98,0.66]
[1762137366536,30.38082769,184.07,183.98,6.93584412]
[1762137366537,6.27584412,184.03,183.98,6.93584412]
[1762137366734,21.012,184.09,184.0,5.4347826]
[1762137367020,6.27584412,184.05,184.0,11.71062672]
[1762137367349,6.27584412,184.05,184.0,25.95758324]
[1762137367549,20.592,184.09,184.02,6.27584412]
[1762137367746,20.592,184.09,184.01,0.66]
[1762137367747,6.27584412,184.07,184.01,6.93584412]
[1762137367929,21.012,184.1,184.01,0.66]
[1762137368131,6.27584412,184.04,184.01,0.66]
[1762137368325,6.27584412,184.04,184.0,19.02173912]
[1762137368629,6.27584412,184.04,184.0,19.68173912]
[1762137368824,6.27584412,184.03,184.0,5.4347826]
[1762137369445,6.27584412,184.03,184.0,6.0947826]
[1762137369848,0.42,184.07,184.0,6.0947826]
[1762137370024,6.27584412,184.03,184.0,6.0947826]
[1762137370525,6.27584412,184.04,184.0,6.0947826]
[1762137370724,6.27584412,184.01,183.97,19.0247436]
[1762137370930,6.27584412,183.99,183.96,0.66]
[1762137371348,30.38082769,184.07,183.93,10.50935966]
[1762137371349,6.27584412,183.98,183.93,10.50935966]
[1762137371546,6.27584412,183.98,183.94,5.43655539]
[1762137371752,6.27584412,183.97,183.94,6.09655539]
[1762137371939,6.27584412,183.97,183.94,5.43655539]
[1762137372126,6.27584412,183.97,183.95,0.66]
[1762137372323,9.78882769,184.07,183.95,0.66]
[1762137372543,6.27584412,184.02,183.97,6.27584412]
[1762137372828,6.27584412,184.04,183.99,25.29861709]
[1762137373249,59.78882769,184.09,183.99,25.29861709]
[1762137373250,6.27584412,184.05,184.0,6.93584412]
[1762137373433,6.27584412,184.05,184.0,0.66]
[1762137373631,0.42,184.05,183.99,5.43507799]
[1762137373848,6.27584412,184.03,183.99,5.43507799]
[1762137374150,6.27584412,184.04,183.99,25.95861709]
[1762137374449,6.27584412,184.07,184.02,6.27584412]
[1762137374951,20.592,184.08,184.04,5.43360139]
[1762137374952,6.27584412,184.08,184.04,5.43360139]
[1762137375251,6.27584412,184.08,184.04,19.01760486]
[1762137375451,6.27584412,184.07,184.04,19.01760486]
[1762137375629,6.27584412,184.07,184.04,5.43360139]
[1762137376144,6.27584412,184.05,184.02,5.43419193]
[1762137376734,0.42,184.08,184.02,19.67967176]
[1762137376928,6.27584412,184.06,184.02,19.67967176]
[1762137377529,6.27584412,184.05,184.02,5.43419193]
[1762137377739,6.27584412,184.08,184.03,6.93584412]
[1762137378353,50.0,184.16,184.04,0.66]
[1762137378657,6.27584412,184.14,184.09,6.27584412]
[1762137378828,6.27584412,184.13,184.08,5.43242068]
[1762137379027,6.27584412,184.12,184.08,5.43242068]
[1762137379231,6.27584412,184.11,184.08,5.43242068]
[1762137379426,0.42,184.15,184.08,5.43242068]
[1762137379741,6.27584412,184.13,184.08,25.28931651]
[1762137380048,30.38082769,184.17,184.09,0.66]
[1762137380049,21.012,184.17,184.09,0.66]
[1762137380355,6.27584412,184.14,184.09,6.93584412]
[1762137380536,6.27584412,184.14,184.09,0.66]
[1762137380733,6.27584412,184.14,184.09,6.27584412]
[1762137380939,6.27584412,184.14,184.1,0.66]
[1762137381155,6.27584412,184.15,184.11,5.43153549]
[1762137381655,6.27584412,184.16,184.11,25.94621834]
[1762137381844,0.42,184.19,184.12,0.66]
[1762137382045,6.27584412,184.15,184.11,19.01037422]
[1762137382232,6.27584412,184.14,184.11,5.43153549]
[1762137382438,6.27584412,184.12,184.06,6.93584412]
[1762137382657,6.27584412,184.09,184.05,13.58260053]
[1762137382853,0.42,184.13,184.06,0.66]
[1762137383361,6.27584412,184.1,184.07,5.43271581]
[1762137383538,6.27584412,184.1,184.07,6.09271581]
[1762137384257,6.27584412,184.09,184.07,6.09271581]
[1762137384465,6.27584412,184.08,184.05,5.43330616]
[1762137384630,20.592,184.14,184.03,5.43389664]
[1762137384631,6.27584412,184.06,184.03,5.43389664]
[1762137384834,20.592,184.11,184.03,0.71]
[1762137385056,6.27584412,184.09,184.04,6.98584412]
[1762137385363,6.27584412,184.1,184.06,5.43301097]
[1762137385662,6.27584412,184.09,184.06,5.43301097]
[1762137386241,6.27584412,184.09,184.06,6.14301097]
[1762137386556,6.27584412,184.08,184.06,5.43301097]
[1762137386942,6.27584412,184.07,184.06,5.43301097]
[1762137387666,6.27584412,184.07,184.04,19.01747917]
[1762137387837,6.27584412,184.07,184.04,19.72747917]
[1762137388037,6.27584412,184.08,184.04,19.72747917]
[1762137388666,6.27584412,184.08,184.04,19.01747917]
[1762137388866,6.27584412,184.08,184.05,0.71]
[1762137389042,6.27584412,184.09,184.05,0.71]
[1762137389247,20.592,184.12,184.05,0.71]
[1762137389754,6.27584412,184.1,184.06,19.0155384]
[1762137390067,9.78882769,184.17,184.07,6.27584412]
[1762137390267,6.27584412,184.14,184.09,6.27584412]